bitfinex-derivatives/quotes_BNBF0:USTF0_20230901
["timestamp","ask_amount","ask_price","bid_price","bid_amount"]
[1693601932486,0.17223586,213.8,213.43,0.07647649]
[1693601932686,0.17223586,213.79,213.43,0.07647649]
[1693601932886,0.17223586,213.78,213.43,0.07647649]
[1693601933083,0.17223586,213.77,213.43,0.07647649]
[1693601933283,0.17223586,213.81,213.43,0.07647649]
[1693601933487,0.17223586,213.8,213.43,0.07647649]
[1693601933681,0.17223586,213.79,213.43,0.07647649]
[1693601933878,0.17223586,213.78,213.43,0.07647649]
[1693601934087,0.17223586,213.77,213.43,0.07647649]
[1693601934489,0.17223586,213.76,213.43,0.07647649]
[1693601934788,0.17223586,213.75,213.43,0.07647649]
[1693601935087,0.17223586,213.74,213.43,0.07647649]
[1693601935288,0.17223586,213.73,213.43,0.07647649]
[1693601935586,0.17223586,213.72,213.43,0.07647649]
[1693601935787,5.12047185,213.82,213.43,0.07647649]
[1693601935990,0.17218174,213.81,213.43,0.07647649]
[1693601940691,0.17218174,213.81,213.44,0.07647649]
[1693601940892,0.17218174,213.8,213.44,0.07647649]
[1693601941092,0.17218174,213.79,213.44,0.07647649]
[1693601941392,0.17218174,213.78,213.44,0.07647649]
[1693601941592,0.17218174,213.77,213.44,0.07647649]
[1693601941794,0.17218174,213.76,213.44,0.07647649]
[1693601941993,0.17218174,213.75,213.44,0.07647649]
[1693601942190,0.17218174,213.82,213.44,0.07647649]
[1693601942395,5.12047185,213.83,213.44,0.07647649]
[1693601942396,0.17218174,213.81,213.44,0.07647649]
[1693601942591,0.17218174,213.82,213.44,0.07647649]
[1693601942795,0.17218174,213.81,213.44,0.07647649]
[1693601942995,0.17218174,213.8,213.44,0.07647649]
[1693601943194,0.17218174,213.82,213.44,0.07647649]
[1693601943393,0.17218174,213.81,213.44,0.07647649]
[1693601943593,0.17218174,213.8,213.44,0.07647649]
[1693601943794,0.17218174,213.79,213.44,0.07647649]
[1693601943995,0.17218174,213.82,213.44,0.07647649]
[1693601944296,0.17218174,213.81,213.43,0.07647649]
[1693601944595,0.17218174,213.8,213.43,0.07647649]
[1693601944796,0.17218174,213.79,213.43,0.07647649]
[1693601944998,0.17218174,213.78,213.43,0.07647649]
[1693601945196,0.17218174,213.82,213.43,0.07647649]
[1693601945398,0.17218174,213.81,213.43,0.07647649]
[1693601945599,0.17218174,213.8,213.43,0.07647649]
[1693601945799,0.17218174,213.79,213.43,0.07647649]
[1693601946001,0.17218174,213.82,213.43,0.07647649]
[1693601946205,0.17218174,213.81,213.43,0.07647649]
[1693601946396,0.17218174,213.8,213.43,0.07647649]
[1693601946598,0.17218174,213.79,213.43,0.07647649]
[1693601946799,0.17218174,213.78,213.43,0.07647649]
[1693601947001,0.17218174,213.77,213.43,0.07647649]
[1693601947301,0.17218174,213.76,213.43,0.07647649]
[1693601947502,0.17218174,213.75,213.43,0.07647649]
[1693601947800,0.17218174,213.74,213.43,0.07647649]
[1693601948000,0.17218174,213.82,213.43,0.07647649]
[1693601948300,0.17218174,213.81,213.43,0.07647649]
[1693601948497,0.17218174,213.8,213.43,0.07647649]
[1693601948701,0.17218174,213.82,213.43,0.07647649]
[1693601948897,0.17218174,213.81,213.43,0.07647649]
[1693601949098,0.17218174,213.8,213.43,0.07647649]
[1693601949301,0.17218174,213.79,213.43,0.07647649]
[1693601949603,0.17218174,213.78,213.43,0.07647649]
[1693601949803,0.17218174,213.82,213.43,0.07647649]
[1693601950005,0.17218174,213.81,213.43,0.07647649]
[1693601950206,0.17218174,213.8,213.43,0.07647649]
[1693601950505,0.17218174,213.79,213.43,0.07647649]
[1693601950706,0.17218174,213.78,213.43,0.07647649]
[1693601950908,0.17218174,213.77,213.43,0.07647649]
[1693601951107,0.17218174,213.76,213.43,0.07647649]
[1693601951308,0.17218174,213.75,213.43,0.07647649]
[1693601951508,0.17218174,213.74,213.43,0.07647649]
[1693601951707,0.17218174,213.73,213.43,0.07647649]
[1693601951908,5.12047185,213.83,213.43,0.07647649]
[1693601952209,0.1721767,213.82,213.43,0.07647649]
[1693601952610,0.1721767,213.82,213.44,0.07647649]
[1693601952808,0.1721767,213.83,213.44,0.07647649]
[1693601953110,0.1721767,213.82,213.43,0.07647649]
[1693601953311,0.1721767,213.81,213.43,0.07647649]
[1693601953503,0.1721767,213.83,213.43,0.07647649]
[1693601953704,0.1721767,213.82,213.43,0.07647649]
[1693601953905,0.1721767,213.83,213.43,0.07647649]
[1693601954212,0.1721767,213.82,213.43,0.07647649]
[1693601957711,0.1721767,213.82,213.44,0.07647649]
[1693601957907,0.1721767,213.81,213.44,0.07647649]
[1693601958111,0.1721767,213.83,213.44,0.07647649]
[1693601958414,0.1721767,213.82,213.44,0.07647649]
[1693601958614,0.1721767,213.81,213.44,0.07647649]
[1693601958814,5.12047185,213.84,213.44,0.07647649]
[1693601958815,0.1721767,213.83,213.44,0.07647649]
[1693601959011,0.1721767,213.82,213.44,0.07647649]
[1693601959212,0.1721767,213.81,213.44,0.07647649]
[1693601959413,0.1721767,213.8,213.44,0.07647649]
[1693601959609,0.1721767,213.83,213.44,0.07647649]
[1693601959916,0.1721767,213.82,213.44,0.07647649]
[1693601960110,0.1721767,213.83,213.44,0.07647649]
[1693601960314,0.1721767,213.82,213.44,0.07647649]
[1693601960616,0.1721767,213.81,213.44,0.07647649]
[1693601960817,0.1721767,213.8,213.44,0.07647649]
[1693601961010,0.1721767,213.83,213.44,0.07647649]
[1693601961212,0.1721767,213.82,213.44,0.07647649]
[1693601961416,0.1721767,213.81,213.44,0.07647649]
[1693601961618,0.1721767,213.8,213.44,0.07647649]
[1693601961917,0.1721767,213.79,213.44,0.07647649]
[1693601962116,0.1721767,213.83,213.44,0.07647649]
[1693601962310,0.1721767,213.82,213.44,0.07647649]
[1693601962511,0.1721767,213.83,213.44,0.07647649]
[1693601962716,0.1721767,213.82,213.44,0.07647649]
[1693601962917,0.1721767,213.81,213.44,0.07647649]
[1693601963217,0.1721767,213.8,213.5,0.07647649]
[1693601963418,5.12047185,213.91,213.5,0.07647649]
[1693601963618,0.17211377,213.9,213.5,0.07647649]
[1693601963918,0.17211377,213.9,213.48,0.07647649]
[1693601964218,0.17211377,213.9,213.49,0.8605724]
[1693601965015,0.17211377,213.92,213.48,0.8605724]
[1693601965216,0.17211377,213.91,213.49,0.86056906]
[1693601965415,0.17211377,213.93,213.48,0.86056906]
[1693601965619,0.17211377,213.92,213.49,0.86057193]
[1693601965816,0.17211377,213.93,213.46,0.07647649]
[1693601966020,0.17211377,213.92,213.47,0.86057418]
[1693601966320,0.17211377,213.91,213.47,0.86057418]
[1693601966520,0.17211377,213.93,213.47,0.86057418]
[1693601966721,0.17211377,213.92,213.47,0.86057418]
[1693601966916,0.17211377,213.94,213.46,0.86057418]
[1693601967115,0.17211377,213.93,213.47,0.86057418]
[1693601967315,0.17211377,213.92,213.48,0.86057418]
[1693601967517,0.17211377,213.94,213.46,0.86057418]
[1693601967719,0.17211377,213.93,213.47,0.86059195]
[1693601967920,0.17211377,213.92,213.48,0.86059195]
[1693601968117,0.17211377,213.94,213.44,0.07647649]
[1693601968421,0.17211377,213.93,213.45,0.86059359]
[1693601968719,0.17211377,213.92,213.45,0.86059359]
[1693601968919,0.17211377,213.91,213.45,0.86059359]
[1693601969114,0.17211377,213.94,213.45,0.86059359]
[1693601969318,0.17211377,213.93,213.45,0.86059359]
[1693601969515,0.17211377,213.95,213.45,0.86059359]
[1693601969721,0.17211377,213.94,213.45,0.86059359]
[1693601969920,5.12047185,213.96,213.45,0.86059359]
[1693601969921,0.17211377,213.93,213.45,0.86059359]
[1693601970116,0.17211377,213.95,213.45,0.86059359]
[1693601970318,0.17211377,213.94,213.45,0.86059359]
[1693601970515,0.17211377,213.95,213.45,0.86059359]
[1693601970714,0.17211377,213.94,213.45,0.86059359]
[1693601970917,0.17211377,213.93,213.45,0.86059359]
[1693601971119,0.17211377,213.96,213.45,0.86059359]
[1693601971320,0.17211377,213.95,213.45,0.86059359]
[1693601971519,0.17211377,213.94,213.45,0.86059359]
[1693601971715,0.17211377,213.93,213.45,0.86059359]
[1693601971920,0.17211377,213.92,213.45,0.86059359]
[1693601972122,0.17211377,213.96,213.45,0.86059359]
[1693601972321,0.17211377,213.95,213.45,0.86059359]
[1693601972622,0.17211377,213.94,213.45,0.86059359]
[1693601972822,0.17211377,213.93,213.45,0.86059359]
[1693601973017,0.17211377,213.97,213.45,0.86059359]
[1693601973222,0.17211377,213.96,213.45,0.86059359]
[1693601973523,0.17211377,213.95,213.46,0.86059359]
[1693601973725,0.17211377,213.94,213.47,0.86059359]
[1693601973922,0.17211377,213.97,213.44,0.86059359]
[1693601974122,0.17211377,213.96,213.45,0.86059359]
[1693601974424,0.17211377,213.95,213.46,0.86059359]
[1693601974623,0.17211377,213.94,213.47,0.86059359]
[1693601974922,5.12047185,213.98,213.48,0.86059359]
[1693601974923,0.17211377,213.93,213.48,0.86059359]
[1693601975222,0.17211377,213.92,213.43,0.07647649]
[1693601975423,0.17211377,213.91,213.44,0.86063873]
[1693601975624,5.29258562,213.97,213.44,0.86063873]
[1693601975824,0.17211377,213.96,213.44,0.86063873]
[1693601976324,0.17211377,213.95,213.44,0.86063873]
[1693601976520,0.17211377,213.97,213.44,0.86063873]
[1693601976726,0.17211377,213.96,213.44,0.86063873]
[1693601976926,0.17211377,213.97,213.44,0.86063873]
[1693601977127,0.17211377,213.96,213.44,0.86063873]
[1693601977426,0.17211377,213.95,213.44,0.86063873]
[1693601977628,0.17211377,213.94,213.44,0.86063873]
[1693601977826,0.17211377,213.93,213.44,0.86063873]
[1693601978030,0.17211377,213.92,213.44,0.86063873]
[1693601978228,5.12047185,213.98,213.44,0.86063873]
[1693601978229,0.17211377,213.91,213.44,0.86063873]
[1693601978529,0.17211377,213.9,213.44,0.86063873]
[1693601978730,0.17211377,213.89,213.44,0.86063873]
[1693601978922,0.17211377,213.96,213.44,0.86063873]
[1693601979127,0.17211377,213.95,213.44,0.86063873]
[1693601979327,0.17211377,213.96,213.44,0.86063873]
[1693601984034,5.29258562,213.96,213.44,0.86063873]
[1693601984234,0.17211377,213.95,213.44,0.86063873]
[1693601984436,7.34077437,213.95,213.44,0.86063873]
[1693601984635,0.17211377,213.94,213.38,0.07647649]
[1693601984831,0.17211377,213.94,213.39,0.86091042]
[1693601985036,0.17211377,213.94,213.4,0.86091042]
[1693601985236,0.17211377,213.94,213.38,0.86091042]
[1693601985439,5.12047185,213.91,213.39,0.86091042]
[1693601985631,0.17211377,213.9,213.4,0.86091042]
[1693601985837,0.17211377,213.9,213.41,0.86091042]
[1693601986131,0.17211377,213.9,213.42,0.86091042]
[1693601986336,0.17211377,213.9,213.37,0.07647649]
[1693601986532,0.17211377,213.9,213.38,0.86092721]
[1693601986938,0.17211377,213.9,213.36,0.07647649]
[1693601986939,5.29258562,213.9,213.37,0.86092721]
[1693601987238,0.17211377,213.89,213.38,0.86092721]
[1693601987435,0.17211377,213.89,213.39,0.86092721]
[1693601987634,0.17211377,213.89,213.37,0.86092721]
[1693601987832,0.17211377,213.89,213.38,0.86092721]
[1693601988036,0.17211377,213.89,213.39,0.86092721]
[1693601988233,0.17211377,213.89,213.4,0.86092721]
[1693601988438,0.17211377,213.89,213.36,0.86092721]
[1693601988636,0.17211377,213.89,213.37,0.86097318]
[1693601988837,0.17211377,213.89,213.36,0.86097318]
[1693601989039,0.17211377,213.89,213.37,0.86097318]
[1693601989235,0.17211377,213.89,213.36,0.86097318]
[1693601989440,0.17211377,213.89,213.37,0.86097318]
[1693601989635,0.17211377,213.89,213.36,0.86097318]
[1693601989835,0.17211377,213.89,213.37,0.86097318]
[1693601990142,0.17211377,213.89,213.38,0.86097318]
[1693601990440,0.17211377,213.89,213.39,0.86097318]
[1693601990637,0.17211377,213.89,213.4,0.86097318]
[1693601990837,0.17211377,213.89,213.36,0.86097318]
[1693601991041,0.17211377,213.89,213.37,0.86097321]
[1693601991239,0.17211377,213.89,213.35,0.86097321]
[1693601991439,0.17211377,213.89,213.36,0.86097321]
[1693601991636,0.17211377,213.89,213.35,0.86097321]
[1693601991840,0.17211377,213.89,213.36,0.86097321]
[1693601992036,0.17211377,213.89,213.35,0.86097321]
[1693601992243,0.17211377,213.89,213.36,0.86097321]
[1693601992440,0.17211377,213.89,213.37,0.86097321]
[1693601992636,0.17211377,213.89,213.38,0.86097321]
[1693601992841,0.17211377,213.89,213.39,0.86097321]
[1693601993142,0.17211377,213.89,213.4,0.86097321]
[1693601993344,0.17211377,213.89,213.34,0.07647649]
[1693601993544,0.17211377,213.89,213.35,0.86097838]
[1693601994035,0.17211377,213.88,213.35,0.86097838]
[1693601994238,0.17211377,213.89,213.31,0.86097838]
[1693601994543,0.17211377,213.88,213.32,0.86118864]
[1693601994743,0.17211377,213.88,213.29,0.07647649]
[1693601994744,0.17211377,213.89,213.3,0.86118864]
[1693601994942,5.29258562,213.88,213.31,0.86118864]
[1693601995142,0.17211377,213.87,213.32,0.86118864]
[1693601995337,0.17211377,213.87,213.29,0.86118864]
[1693601995638,0.17211377,213.87,213.3,0.86118864]
[1693601995843,0.17211377,213.87,213.29,0.86118864]
[1693601996145,0.17211377,213.87,213.3,0.86118864]
[1693601996345,0.17211377,213.87,213.31,0.86118864]
[1693601996543,0.17211377,213.88,213.29,0.86118864]
[1693601996739,0.17211377,213.87,213.3,0.86118864]
[1693601996939,0.17211377,213.86,213.31,0.86118864]
[1693601997143,0.17211377,213.88,213.28,0.86118864]
[1693601997443,0.17211377,213.87,213.29,0.86118864]
[1693601997643,0.17211377,213.86,213.3,0.86118864]
[1693601997840,0.17211377,213.85,213.31,0.86118864]
[1693601998040,0.17211377,213.84,213.32,0.86118864]
[1693601998246,0.17211377,213.9,213.27,0.86118864]
[1693601998440,0.17211377,213.89,213.28,0.86118864]
[1693601998646,0.17211377,213.88,213.29,0.86118864]
[1693601998842,0.17211377,213.9,213.27,0.86118864]
[1693601999042,0.17211377,213.89,213.28,0.86118864]
[1693601999240,0.17211377,213.88,213.29,0.86118864]
[1693601999542,0.17211377,213.87,213.3,0.86118864]
[1693601999747,0.17211377,213.86,213.31,0.86118864]
[1693602000044,0.17211377,213.85,213.32,0.86118864]
[1693602000243,0.17211377,213.9,213.27,0.86118864]
[1693602000447,0.17211377,213.89,213.28,0.86118864]
[1693602000647,0.17211377,213.91,213.27,0.86118864]
[1693602000848,0.17211377,213.9,213.28,0.86118864]
[1693602001043,0.17211377,213.89,213.29,0.86118864]
[1693602001241,0.17211377,213.91,213.26,0.86118864]
[1693602001443,0.17211377,213.9,213.27,0.86118864]
[1693602001645,0.17211377,213.89,213.26,0.86118864]
[1693602001846,0.17211377,213.88,213.27,0.86118864]
[1693602002047,0.17211377,213.91,213.26,0.86118864]
[1693602002248,0.17211377,213.9,213.27,0.86118864]
[1693602002548,0.17211377,213.89,213.28,0.86118864]
[1693602002749,0.17211377,213.88,213.29,0.86118864]
[1693602002948,0.17211377,213.87,213.3,0.86118864]
[1693602003148,5.12047185,213.92,213.31,0.86118864]
[1693602003149,0.17211377,213.86,213.31,0.86118864]
[1693602003448,0.17211377,213.85,213.32,0.86118864]
[1693602003650,0.17211377,213.84,213.33,0.86118864]
[1693602003950,0.17211377,213.83,213.34,0.86118864]
[1693602004251,0.17211377,213.82,213.25,0.07647649]
[1693602004451,0.17211377,213.81,213.26,0.86121839]
[1693602004749,0.17211377,213.8,213.26,0.86121839]
[1693602004951,0.17211377,213.79,213.26,0.86121839]
[1693602005151,0.17211377,213.78,213.26,0.86121839]
[1693602005353,0.17211377,213.77,213.26,0.86121839]
[1693602005548,0.17211377,213.92,213.25,0.86121839]
[1693602005752,0.17211377,213.91,213.26,0.86121839]
[1693602005947,0.17211377,213.92,213.24,0.86121839]
[1693602006154,0.17211377,213.91,213.25,0.86121839]
[1693602006448,0.17211377,213.91,213.26,0.86121839]
[1693602006649,0.17211377,213.91,213.27,0.86121839]
[1693602006947,0.17211377,213.91,213.28,0.86121839]
[1693602007148,0.17211377,213.91,213.24,0.86121839]
[1693602007349,0.17211377,213.91,213.25,0.86121839]
[1693602007548,0.17211377,213.91,213.26,0.86121839]
[1693602007747,0.17211377,213.91,213.27,0.86121839]
[1693602008047,0.17211377,213.9,213.28,0.86121839]
[1693602008352,0.17211377,213.89,213.29,0.86121839]
[1693602008553,0.17211377,213.88,213.3,0.86121839]
[1693602008749,0.17211377,213.87,213.31,0.86121839]
[1693602008946,0.17211377,213.86,213.32,0.86121839]
[1693602009148,0.17211377,213.85,213.33,0.86121839]
[1693602009452,0.17211377,213.84,213.24,0.07647649]
[1693602009652,0.17211377,213.93,213.25,0.86128458]
[1693602009850,0.17211377,213.92,213.25,0.86128458]
[1693602010154,0.17211377,213.91,213.25,0.93776107]
[1693602010453,0.17211377,213.9,213.26,0.86128458]
[1693602010754,0.17211377,213.89,213.26,0.86128458]
[1693602010957,5.29258562,213.94,213.26,0.86128458]
[1693602011156,0.17211377,213.93,213.26,0.86128458]
[1693602011854,0.17211377,213.93,213.26,0.93776107]
[1693602012045,0.17211377,213.93,213.27,0.86128458]
[1693602012851,0.17211377,213.93,213.28,0.86128458]
[1693602013051,0.17211377,213.93,213.27,0.86128458]
[1693602013255,0.17211377,213.93,213.28,0.86128458]
[1693602013455,0.17211377,213.93,213.29,0.86128458]
[1693602013755,0.17211377,213.93,213.3,0.86128458]
[1693602013957,0.17211377,213.93,213.02,1.01968661]
[1693602013958,0.17211377,213.93,213.21,0.07647649]
[1693602014256,0.17211377,213.93,213.22,0.86155871]
[1693602014455,5.12047185,213.87,213.22,0.86155871]
[1693602014656,0.17211377,213.86,213.22,0.86155871]
[1693602014857,0.17211377,213.85,213.22,0.86155871]
[1693602015057,0.17211377,213.84,213.22,0.86155871]
[1693602015253,0.17211377,213.87,213.22,0.86155871]
[1693602015454,0.17211377,213.86,213.22,0.86155871]
[1693602015652,0.17211377,213.85,213.22,0.86155871]
[1693602015855,0.17211377,213.84,213.22,0.9380352]
[1693602016056,0.17211377,213.83,213.23,0.86155871]
[1693602016258,0.17211377,213.82,213.23,0.86155871]
[1693602016458,0.17211377,213.81,213.23,0.86155871]
[1693602016760,0.17211377,213.8,213.23,0.9380352]
[1693602016961,0.17211377,213.79,213.24,0.86155871]
[1693602017260,0.17211377,213.78,213.24,0.86155871]
[1693602017559,0.17211377,213.77,213.24,0.86155871]
[1693602017760,0.17211377,213.76,213.24,0.86155871]
[1693602017960,0.17211377,213.75,213.27,0.07647649]
[1693602018260,0.17211377,213.74,213.28,0.9380352]
[1693602018455,0.17211377,213.73,213.29,0.9380352]
[1693602018659,5.29258562,213.93,213.3,0.86155871]
[1693602018860,5.29258562,213.92,213.3,0.9380352]
[1693602019066,0.17211377,213.91,213.31,0.86155871]
[1693602019859,0.17211377,213.91,213.31,0.9380352]
[1693602020160,0.17211377,213.9,213.32,0.86155871]
[1693602020462,0.17211377,213.89,213.32,0.86155871]
[1693602020761,0.17211377,213.88,213.32,0.9380352]
[1693602020962,0.17211377,213.87,213.33,0.86155871]
[1693602021164,0.17211377,213.86,213.33,0.86155871]
[1693602021463,0.17211377,213.85,213.33,0.86155871]
[1693602021664,0.17211377,213.84,213.33,0.86155871]
[1693602021858,0.17211377,213.83,213.33,0.86155871]
[1693602022061,0.17211377,213.82,213.33,0.86155871]
[1693602022257,0.17211377,213.81,213.33,0.86155871]
[1693602022563,0.17211377,213.8,213.33,0.86155871]
[1693602022764,0.17211377,213.79,213.33,0.9380352]
[1693602022966,0.17211377,213.78,213.34,0.86155871]
[1693602023158,0.17211377,213.77,213.34,0.86155871]
[1693602023361,0.17211377,213.76,213.34,0.86155871]
[1693602023562,0.17211377,213.75,213.34,0.86155871]
[1693602023761,5.12047185,213.91,213.34,0.86155871]
[1693602023762,0.17211377,213.74,213.34,0.86155871]
[1693602023961,0.17211377,213.73,213.34,0.86155871]
[1693602024160,0.17211377,213.9,213.34,0.86155871]
[1693602024365,0.17211377,213.89,213.34,0.86155871]
[1693602024665,0.17211377,213.88,213.34,0.86155871]
[1693602024866,0.17211377,213.9,213.34,0.86155871]
[1693602025066,0.17211377,213.89,213.34,0.9380352]
[1693602025267,0.17211377,213.89,213.35,0.86155871]
[1693602025863,0.17211377,213.89,213.35,0.9380352]
[1693602026167,0.17211377,213.89,213.34,0.07647649]
[1693602026766,0.17211377,213.89,213.35,0.07647649]
[1693602027261,5.29258562,213.89,213.35,0.07647649]
[1693602027465,0.17211377,213.88,213.35,0.07647649]
[1693602027766,0.17211377,213.88,213.36,0.07647649]
[1693602028269,5.29258562,213.88,213.36,0.07647649]
[1693602028467,0.17211377,213.87,213.36,0.07647649]
[1693602028868,5.29258562,213.87,213.37,0.07647649]
[1693602029070,0.17211377,213.86,213.37,0.07647649]
[1693602031567,5.29258562,213.86,213.37,0.07647649]
[1693602031771,0.17211377,213.85,213.37,0.07647649]
[1693602032070,0.17211377,213.85,213.36,0.07647649]
[1693602033470,5.29258562,213.85,213.36,0.07647649]
[1693602033668,0.17211377,213.84,213.36,0.07647649]
[1693602034670,5.29258562,213.84,213.36,0.07647649]
[1693602034872,0.17211377,213.83,213.36,0.07647649]
[1693602038578,5.29258562,213.83,213.36,0.07647649]
[1693602038778,0.17211377,213.82,213.35,0.07647649]
[1693602040772,5.29258562,213.82,213.34,0.07647649]
[1693602041079,0.17211377,213.81,213.34,0.07647649]
[1693602043080,5.29258562,213.81,213.33,0.07647649]
[1693602043281,0.17211377,213.8,213.34,0.86124097]
[1693602043781,5.29258562,213.8,213.34,0.86124097]
[1693602043980,0.17211377,213.79,213.32,0.07647649]
[1693602044182,0.17211377,213.79,213.33,0.86124271]
[1693602044579,0.17211377,213.78,213.33,0.86124271]
[1693602044779,5.12047185,213.81,213.33,0.86124271]
[1693602044780,0.17211377,213.8,213.33,0.86124271]
[1693602044976,0.17211377,213.79,213.33,0.86124271]
[1693602045178,0.17211377,213.78,213.33,0.86124271]
[1693602045379,0.17211377,213.77,213.33,0.86124271]
[1693602045681,0.17211377,213.76,213.33,0.86124271]
[1693602045880,0.17211377,213.75,213.31,0.07647649]
[1693602046077,0.17211377,213.79,213.32,0.86127147]
[1693602047180,0.17211377,213.79,213.31,0.86127147]
[1693602047379,5.29258562,213.79,213.32,0.8612856]
[1693602047574,0.17211377,213.78,213.3,0.07647649]
[1693602047779,0.17211377,213.78,213.31,0.86132266]
[1693602048678,5.29258562,213.78,213.31,0.86132266]
[1693602048878,0.17211377,213.77,213.31,0.86132266]
[1693602049078,0.17211377,213.77,213.29,0.07647649]
[1693602049276,0.17211377,213.77,213.3,0.86132332]
[1693602049682,0.17211377,213.77,213.3,0.93779981]
[1693602049882,0.17211377,213.77,213.31,0.86132332]
[1693602050384,5.29258562,213.77,213.31,0.86132332]
[1693602050580,0.17211377,213.76,213.31,0.86132332]
[1693602050780,5.29258562,213.76,213.31,0.86132332]
[1693602050979,0.17211377,213.75,213.31,0.86132332]
[1693602051577,0.17211377,213.75,213.31,0.93779981]
[1693602051781,0.17211377,213.75,213.31,0.07647649]
[1693602052082,5.12047185,213.74,213.31,0.07647649]
[1693602052282,0.17211377,213.73,213.31,0.07647649]
[1693602052782,5.29258562,213.73,213.33,0.07647649]
[1693602053082,5.29258562,213.73,213.34,0.07647649]
[1693602053083,0.17211377,213.72,213.34,0.07647649]
[1693602053482,0.17211377,213.71,213.34,0.07647649]
[1693602053678,0.17211377,213.7,213.34,0.07647649]
[1693602053982,0.17211377,213.69,213.34,0.07647649]
[1693602054182,0.17211377,213.68,213.34,0.07647649]
[1693602054482,0.17211377,213.67,213.34,0.07647649]
[1693602054682,0.17211377,213.66,213.34,0.07647649]
[1693602054883,0.17211377,213.65,213.34,0.07647649]
[1693602055080,0.17211377,213.72,213.34,0.07647649]
[1693602055779,0.17211377,213.73,213.34,0.07647649]
[1693602056088,0.17211377,213.72,213.34,0.07647649]
[1693602056286,0.17211377,213.71,213.34,0.07647649]
[1693602056478,0.17211377,213.7,213.34,0.07647649]
[1693602056679,0.17211377,213.69,213.34,0.07647649]
[1693602056879,0.17211377,213.68,213.34,0.07647649]
[1693602057080,0.17211377,213.67,213.34,0.07647649]
[1693602057279,0.17211377,213.66,213.34,0.07647649]
[1693602057481,0.17211377,213.65,213.34,0.07647649]
[1693602057683,0.17211377,213.72,213.34,0.07647649]
[1693602057884,0.17211377,213.71,213.27,0.07647649]
[1693602058085,0.17211377,213.72,213.24,0.07647649]
[1693602058290,0.17211377,213.71,213.24,0.07647649]
[1693602058484,0.17211377,213.7,213.24,0.07647649]
[1693602058684,0.17211377,213.69,213.21,0.07647649]
[1693602058883,5.12047185,213.67,213.22,0.86169256]
[1693602059184,0.17211377,213.66,213.22,0.86169256]
[1693602059688,0.17211377,213.66,213.18,0.07647649]
[1693602059881,0.17211377,213.66,213.19,0.8616997]
[1693602060483,0.17211377,213.67,213.19,0.8616997]
[1693602061188,0.17211377,213.67,213.18,0.8616997]
[1693602061381,0.17211377,213.67,213.19,0.8616997]
[1693602061583,0.17211377,213.67,213.2,0.8616997]
[1693602061784,0.17211377,213.67,213.21,0.8616997]
[1693602061980,0.17211377,213.66,213.17,0.07647649]
[1693602062189,0.17211377,213.69,213.18,0.8617014]
[1693602062388,0.17211377,213.68,213.18,0.8617014]
[1693602062588,0.17211377,213.69,213.18,0.8617014]
[1693602062790,0.17211377,213.68,213.18,0.8617014]
[1693602062990,0.17211377,213.69,213.18,0.8617014]
[1693602063192,0.17211377,213.68,213.18,0.8617014]
[1693602063391,0.17211377,213.69,213.18,0.8617014]
[1693602063593,5.12047185,213.71,213.19,0.8617014]
[1693602063594,0.17211377,213.68,213.19,0.8617014]
[1693602063791,0.17211377,213.68,213.16,0.07647649]
[1693602063792,0.17211377,213.67,213.2,0.8617014]
[1693602063987,0.17211377,213.66,213.21,0.8617014]
[1693602064193,0.17211377,213.65,213.22,0.8617014]
[1693602064493,0.17211377,213.64,213.16,0.07647649]
[1693602064692,0.17211377,213.63,213.17,0.86169289]
[1693602064893,0.17211377,213.62,213.17,0.86169289]
[1693602065093,0.17211377,213.61,213.17,0.86169289]
[1693602065289,0.17211377,213.6,213.17,0.93816938]
[1693602065489,0.17211377,213.59,213.18,0.86169289]
[1693602065687,0.17211377,213.58,213.19,0.86169289]
[1693602065890,0.17211377,213.73,213.18,0.86169289]
[1693602066087,0.17211377,213.72,213.19,0.86169289]
[1693602066289,0.17211377,213.71,213.23,0.07647649]
[1693602066491,0.17211377,213.7,213.24,0.86169289]
[1693602066691,0.17211377,213.69,213.24,0.86169289]
[1693602066992,0.17211377,213.68,213.24,0.86169289]
[1693602067192,0.17211377,213.67,213.24,0.86169289]
[1693602067495,0.17211377,213.66,213.24,0.86169289]
[1693602067692,0.17211377,213.65,213.24,0.86169289]
[1693602067894,0.17211377,213.64,213.24,0.86169289]
[1693602068093,0.17211377,213.63,213.24,0.86169289]
[1693602068394,0.17211377,213.62,213.24,0.86169289]
[1693602068594,0.17211377,213.61,213.24,0.86169289]
[1693602068792,0.17211377,213.6,213.24,0.86169289]
[1693602068992,5.12047185,213.8,213.24,0.86169289]
[1693602069194,0.17227843,213.79,213.24,0.86169289]
[1693602072298,0.17227843,213.78,213.24,0.86169289]
[1693602072491,0.17227843,213.8,213.24,0.86169289]
[1693602072691,0.17227843,213.79,213.24,0.86169289]
[1693602072895,0.17227843,213.78,213.24,0.86169289]
[1693602073196,0.17227843,213.77,213.24,0.86169289]
[1693602073397,5.29275028,213.8,213.24,0.86169289]
[1693602073597,0.17227843,213.79,213.24,0.86169289]
[1693602076799,0.17227843,213.79,213.24,0.93816938]
[1693602077000,0.17227843,213.79,213.25,0.86169289]
[1693602077198,0.17227843,213.78,213.25,0.86169289]
[1693602077394,5.29275028,213.8,213.25,0.86169289]
[1693602077593,0.17227843,213.79,213.25,0.86169289]
[1693602081702,5.29275028,213.79,213.25,0.86169289]